Workbook

Sheet CHART
A1: ='2004'!A1 -> YEARLY RAINFALL DATA: 2004

Sheet 2011
A1: YEARLY RAINFALL DATA: 2011
A2: Day | B2: Jan | C2: Feb | D2: Mar | E2: Apr | F2: May | G2: Jun | H2: Jul | I2: Aug | J2: Sep | K2: Oct | L2: Nov | M2: Dec
A3: 1st | B3: 0 | C3: 0 | D3: 0.8 | E3: 0 | F3: 0 | G3: 0 | H3: 0 | I3: 0 | J3: 1 | K3: 11.4 | L3: 1.2 | M3: 8.8
A4: 2nd | B4: 0 | C4: 0 | D4: 3.6 | E4: 4.2 | F4: 5.2 | G4: 0 | H4: 0 | I4: 0 | J4: 0 | K4: 3.2 | L4: 17.6 | M4: 0.2
A5: 3rd | B5: 0 | C5: 0.2 | D5: 0.2 | E5: 1.4 | F5: 0.2 | G5: 0 | H5: 0 | I5: 0 | J5: 0 | K5: 0 | L5: 2 | M5: 0
A6: 4th | B6: 0 | C6: 3.4 | D6: 4.6 | E6: 1.8 | F6: 1.4 | G6: 0.6 | H6: 2.4 | I6: 0 | J6: 0 | K6: 0 | L6: 1.8 | M6: 0
A7: 5th | B7: 0 | D7: 0 | E7: 0 | F7: 1.8 | G7: 0 | H7: 1.6 | I7: 0 | J7: 0 | K7: 0 | L7: 0 | M7: 0
A8: 6th | B8: 0 | C8: 70.6 | D8: 0 | E8: 0 | F8: 0.4 | G8: 12.2 | H8: 21.6 | I8: 2.2 | J8: 0.4 | K8: 0 | L8: 0 | M8: 0
A9: 7th | B9: 0 | C9: 0.2 | D9: 0 | E9: 0 | F9: 0 | G9: 0 | H9: 23.2 | I9: 1.2 | J9: 3.8 | K9: 4.8 | L9: 0 | M9: 0
A10: 8th | B10: 0 | C10: 0.6 | D10: 0.8 | E10: 0 | F10: 0 | G10: 17.6 | H10: 1 | I10: 0.4 | J10: 0.8 | K10: 0 | L10: 33.4 | M10: 0
A11: 9th | B11: 0.2 | C11: 0 | D11: 0.2 | E11: 0 | F11: 5.6 | G11: 1 | H11: 1 | I11: 2.2 | J11: 6.4 | K11: 4 | L11: 0.8 | M11: 0
A12: 10th | B12: 2.2 | C12: 0 | D12: 28.6 | E12: 30.8 | F12: 0 | G12: 0.4 | H12: 6.8 | I12: 7.8 | J12: 4 | K12: 9.4 | L12: 35.6 | M12: 0
A13: 11th | B13: 8 | C13: 11.4 | D13: 0 | E13: 0.2 | F13: 22.8 | G13: 0 | H13: 6.8 | I13: 10.6 | J13: 10.4 | K13: 11.2 | L13: 0.2 | M13: 45.6
A14: 12th | B14: 14.2 | C14: 2.2 | D14: 0 | E14: 45.6 | F14: 11.8 | G14: 0.2 | H14: 1.4 | I14: 0 | J14: 0.4 | K14: 1 | L14: 0 | M14: 0.4
A15: 13th | B15: 5.4 | C15: 0 | E15: 14.4 | F15: 10.4 | G15: 0 | H15: 4.4 | I15: 0 | J15: 0 | K15: 0 | L15: 0 | M15: 0
A16: 14th | B16: 17 | C16: 0 | D16: 17.6 | E16: 31.8 | F16: 3.2 | G16: 0 | H16: 1.8 | I16: 0 | J16: 0 | K16: 0 | L16: 3.6 | M16: 0
A17: 15th | B17: 12 | C17: 0 | D17: 0 | E17: 0.4 | F17: 12.8 | G17: 0.2 | H17: 0.8 | I17: 0.2 | J17: 0 | K17: 0 | L17: 4.2 | M17: 0
A18: 16th | B18: 0.2 | C18: 0 | D18: 0 | E18: 0 | F18: 4 | G18: 0 | H18: 0 | I18: 2.4 | J18: 0 | K18: 2.8 | L18: 5 | M18: 0
A19: 17th | B19: 0.6 | C19: 34.4 | D19: 0 | E19: 0 | F19: 2 | G19: 6.4 | H19: 0.2 | I19: 8.8 | J19: 0 | K19: 0 | L19: 0 | M19: 0
A20: 18th | B20: 1 | C20: 1 | D20: 0 | E20: 0 | F20: 0.2 | G20: 7.4 | H20: 7.4 | I20: 6 | J20: 0 | K20: 0 | L20: 0 | M20: 0
A21: 19th | B21: 0.2 | C21: 23.4 | D21: 0 | E21: 0 | F21: 0 | G21: 1.6 | H21: 0.2 | I21: 0 | J21: 0 | K21: 0 | L21: 15.4 | M21: 6
A22: 20th | B22: 0 | C22: 6.8 | D22: 0 | E22: 0 | F22: 0 | G22: 0.6 | H22: 4.8 | I22: 0 | J22: 8 | K22: 0 | L22: 23.2 | M22: 0.6
A23: 21st | B23: 0 | C23: 5 | D23: 0 | E23: 5.4 | F23: 0 | G23: 20.2 | H23: 2.8 | I23: 0 | J23: 2.8 | K23: 6.8 | L23: 0 | M23: 0
A24: 22nd | B24: 0 | C24: 0.2 | D24: 2.2 | E24: 10.4 | F24: 0 | G24: 22.2 | H24: 23 | I24: 0 | J24: 0 | K24: 1.4 | L24: 0 | M24: 0
A25: 23rd | B25: 0 | C25: 0 | D25: 11.4 | E25: 1.8 | F25: 4.4 | G25: 6.2 | H25: 0 | I25: 0 | J25: 1.2 | K25: 3.6 | L25: 0.2 | M25: 0
A26: 24th | B26: 5.6 | C26: 0 | D26: 2.8 | E26: 0.4 | F26: 15.8 | G26: 0.2 | H26: 0.4 | I26: 0 | J26: 0.8 | K26: 2.2 | L26: 0
A27: 25th | B27: 0 | C27: 0 | D27: 18.4 | E27: 0.2 | F27: 4.6 | G27: 0 | H27: 1.2 | I27: 0 | J27: 0 | K27: 15.8 | L27: 0 | M27: 8.6
A28: 26th | B28: 7.4 | C28: 0 | D28: 0.2 | E28: 0 | F28: 1 | G28: 0 | H28: 3 | I28: 1.8 | J28: 0 | K28: 0.2 | L28: 8.8 | M28: 0
A29: 27th | B29: 0 | C29: 12.8 | D29: 1 | E29: 0 | F29: 7.6 | G29: 0.6 | H29: 2.2 | I29: 0 | J29: 0 | K29: 0 | L29: 34.4 | M29: 0
A30: 28th | B30: 0 | C30: 0.2 | D30: 0 | E30: 0 | F30: 9 | G30: 0 | H30: 0 | I30: 0 | J30: 0 | K30: 0 | L30: 0.2 | M30: 0
A31: 29th | B31: 0 | D31: 0 | E31: 0 | F31: 0.4 | G31: 0.2 | H31: 0 | I31: 6.8 | J31: 36.8 | K31: 23.6 | L31: 0 | M31: 0
A32: 30th | B32: 0 | D32: 0.8 | E32: 0 | F32: 0 | G32: 0 | H32: 0 | I32: 0.4 | J32: 27 | K32: 6.2 | L32: 13.2 | M32: 0
A33: 31st | B33: 0 | D33: 2.4 | F33: 0 | H33: 0.2 | I33: 0.6 | K33: 3 | M33: 0
B34: =SUM(B3:B33) -> 74 | C34: =SUM(C3:C33) -> 172.4 | D34: 95.6 | E34: 148.8 | F34: 124.6 | G34: 97.8 | H34: 118.2 | I34: 51.4 | J34: 103.8 | K34: 110.6 | L34: 200.8 | M34: 70.2

Sheet 2010
A1: YEARLY RAINFALL DATA: 2010
A2: Day | B2: Jan | C2: Feb | D2: Mar | E2: Apr | F2: May | G2: Jun | H2: Jul | I2: Aug | J2: Sep | K2: Oct | L2: Nov | M2: Dec
A3: 1st | B3: 2.2 | C3: 0 | D3: 0 | E3: 0 | F3: 0 | G3: 0 | H3: 0 | I3: 8.4 | J3: 11.8 | K3: 0.4 | L3: 1.4 | M3: 0.2
A4: 2nd | B4: 3.8 | C4: 0 | D4: 0 | E4: 0 | F4: 0 | G4: 0 | H4: 0 | I4: 29.2 | J4: 7 | K4: 0 | L4: 1.2 | M4: 0
A5: 3rd | B5: 0.8 | C5: 0 | D5: 0 | E5: 0 | F5: 0.6 | G5: 0.2 | H5: 2.2 | I5: 0.6 | J5: 0 | K5: 0 | L5: 6.2 | M5: 7.8
A6: 4th | B6: 0 | C6: 0 | D6: 0 | E6: 0 | F6: 0 | G6: 0.2 | H6: 3.8 | I6: 0 | J6: 7.4 | K6: 0 | L6: 0.4 | M6: 0
A7: 5th | B7: 0 | C7: 10.4 | D7: 0 | E7: 0 | F7: 21.8 | G7: 0 | H7: 0 | I7: 10.2 | J7: 16.4 | K7: 2.2 | L7: 0 | M7: 0
A8: 6th | B8: 0 | C8: 0 | D8: 0 | E8: 0.8 | F8: 8.4 | G8: 7.8 | H8: 0 | I8: 10 | J8: 10.6 | K8: 0 | L8: 0 | M8: 0
A9: 7th | B9: 0 | C9: 0 | D9: 22.6 | E9: 6 | F9: 1.8 | G9: 2.6 | H9: 1.2 | I9: 6.2 | J9: 0.8 | K9: 19 | L9: 0 | M9: 0
A10: 8th | B10: 0 | C10: 0 | D10: 14.4 | E10: 15.8 | F10: 9.6 | G10: 0 | H10: 0 | I10: 0 | J10: 0 | K10: 2.6 | L10: 0 | M10: 4.6
A11: 9th | B11: 0 | C11: 0 | D11: 18.8 | E11: 1 | F11: 0 | G11: 3.4 | H11: 0 | I11: 0 | J11: 4.2 | K11: 0.2 | L11: 0 | M11: 24.2
A12: 10th | B12: 0 | C12: 0 | D12: 7.2 | E12: 0.4 | F12: 0.2 | G12: 14.6 | H12: 0 | I12: 0 | J12: 3.8 | K12: 0 | L12: 0 | M12: 4.8
A13: 11th | B13: 0 | C13: 0 | D13: 0.4 | E13: 3.2 | F13: 17.6 | G13: 11.2 | H13: 0 | I13: 6.4 | J13: 1.8 | K13: 0 | L13: 0 | M13: 0
A14: 12th | B14: 0 | C14: 35.2 | D14: 0 | E14: 34.2 | F14: 20.2 | G14: 5 | H14: 0 | I14: 15 | J14: 0 | K14: 0 | L14: 0 | M14: 4.2
A15: 13th | B15: 0 | C15: 0 | D15: 0 | E15: 1.4 | F15: 6.6 | G15: 2 | H15: 0 | I15: 2.2 | J15: 1 | K15: 11.4 | L15: 18.6 | M15: 1.8
A16: 14th | B16: 0.4 | C16: 0.4 | D16: 0 | E16: 1.6 | F16: 1.8 | G16: 0.4 | H16: 27.2 | I16: 0 | J16: 0 | K16: 0.4 | L16: 23.8 | M16: 0
A17: 15th | B17: 0 | C17: 0.4 | D17: 0 | E17: 1 | F17: 0 | G17: 0 | H17: 7.4 | I17: 2.2 | J17: 0 | K17: 8.6 | L17: 0.8 | M17: 0
A18: 16th | B18: 0 | C18: 0 | D18: 0 | E18: 0.6 | F18: 0 | G18: 0 | H18: 0 | I18: 12.2 | J18: 5.6 | L18: 0.2 | M18: 1.8
A19: 17th | B19: 2 | C19: 0 | D19: 0 | E19: 0 | F19: 0 | G19: 11.8 | H19: 2 | I19: 11.4 | J19: 5 | K19: 33.2 | L19: 0 | M19: 0
A20: 18th | B20: 27.6 | C20: 0 | D20: 0 | E20: 0 | F20: 0 | G20: 13 | H20: 0 | I20: 0 | J20: 0.6 | K20: 0.2 | L20: 0 | M20: 5
A21: 19th | B21: 3 | C21: 0 | D21: 0.2 | E21: 0 | F21: 0 | G21: 6.8 | H21: 8.6 | I21: 6.2 | K21: 1 | L21: 2 | M21: 4
A22: 20th | B22: 0 | C22: 0 | D22: 0 | E22: 0 | F22: 0.2 | G22: 7 | H22: 0.6 | I22: 10.2 | J22: 11 | K22: 0 | L22: 0 | M22: 14.6
A23: 21st | B23: 0 | C23: 0 | D23: 1 | E23: 5.4 | F23: 0.4 | G23: 0.2 | H23: 12.2 | I23: 2.4 | J23: 2.2 | K23: 0 | L23: 0.6 | M23: 9.2
A24: 22nd | B24: 0 | C24: 0 | D24: 0.4 | E24: 0 | F24: 0 | G24: 0 | H24: 3.8 | I24: 0.6 | J24: 0 | K24: 0 | L24: 0 | M24: 1.2
A25: 23rd | B25: 0.2 | C25: 1.8 | D25: 0 | E25: 3.2 | F25: 0 | G25: 0 | H25: 3.2 | I25: 0 | J25: 1.2 | K25: 10.4 | L25: 0 | M25: 0.2
A26: 24th | B26: 0 | C26: 0 | D26: 0 | E26: 14.6 | F26: 0 | G26: 0 | H26: 1.4 | I26: 1.2 | J26: 0.6 | K26: 0.8 | L26: 0 | M26: 0
A27: 25th | B27: 0 | C27: 0 | D27: 0 | E27: 4.6 | F27: 0.8 | G27: 4 | H27: 0.8 | I27: 11 | J27: 0 | K27: 0 | L27: 12 | M27: 0
A28: 26th | B28: 0 | C28: 0 | D28: 0 | E28: 3.4 | F28: 1.6 | G28: 15.2 | H28: 2 | I28: 5 | J28: 0 | K28: 0 | L28: 11.8 | M28: 0
A29: 27th | B29: 0 | D29: 0 | E29: 5.4 | F29: 0.6 | G29: 13.6 | H29: 0 | I29: 11.4 | J29: 0 | K29: 0 | L29: 1.2 | M29: 3.2
A30: 28th | B30: 0 | C30: 0.6 | E30: 1.8 | F30: 3.4 | G30: 0 | H30: 0 | I30: 1.6 | J30: 5.8 | K30: 0 | L30: 42.6 | M30: 0.6
A31: 29th | B31: 0.6 | D31: 31.4 | E31: 9.6 | F31: 4.6 | G31: 0.8 | H31: 1.6 | I31: 1.8 | J31: 5.4 | K31: 0 | L31: 1.2 | M31: 0
A32: 30th | B32: 0 | D32: 0.2 | E32: 5.4 | F32: 2.8 | G32: 9 | H32: 0 | I32: 0 | J32: 3.8 | K32: 0.4 | L32: 2.2 | M32: 0
A33: 31st | B33: 0 | D33: 0 | F33: 1.6 | H33: 1.4 | I33: 0 | K33: 38.2 | M33: 0
B34: =SUM(B3:B33) -> 40.6 | C34: =SUM(C3:C33) -> 48.8 | D34: 96.6 | E34: 119.4 | F34: 104.6 | G34: 128.8 | H34: 79.4 | I34: 165.4 | J34: 106 | K34: 129 | L34: 126.2 | M34: 87.4

Sheet 2009
A1: YEARLY RAINFALL DATA: 2009
A2: Day | B2: Jan | C2: Feb | D2: Mar | E2: Apr | F2: May | G2: Jun | H2: Jul | I2: Aug | J2: Sep | K2: Oct | L2: Nov | M2: Dec
A3: 1st | B3: 0 | C3: 0 | D3: 0 | E3: 0 | F3: 0 | G3: 0 | H3: 10.4 | I3: 1.4 | J3: 1.2 | K3: 0 | L3: 1.8 | M3: 0
A4: 2nd | B4: 5 | C4: 0 | D4: 0 | E4: 0 | F4: 1.2 | G4: 0 | H4: 7.4 | I4: 2.4 | J4: 0 | K4: 0.2 | L4: 0 | M4: 0
A5: 3rd | B5: 0 | C5: 1.8 | D5: 0 | E5: 0 | F5: 0.2 | G5: 6 | H5: 17.4 | I5: 10.6 | J5: 0 | K5: 0 | L5: 1.2 | M5: 0
A6: 4th | B6: 0 | C6: 0 | D6: 6.6 | E6: 19.4 | F6: 0.2 | G6: 0.2 | H6: 4 | I6: 0 | J6: 1.4 | K6: 0 | L6: 0 | M6: 3.8
A7: 5th | B7: 0 | C7: 0 | D7: 18 | E7: 1 | F7: 1.6 | G7: 1 | H7: 7.2 | I7: 10 | J7: 8.8 | K7: 0 | L7: 1 | M7: 0.2
A8: 6th | B8: 0 | C8: 0 | D8: 0.4 | E8: 3.2 | F8: 0 | G8: 0 | H8: 8.6 | I8: 0 | J8: 0 | K8: 3.2 | L8: 0 | M8: 0
A9: 7th | B9: 0.2 | C9: 0 | D9: 0.4 | E9: 2 | F9: 3 | G9: 0 | H9: 0 | I9: 9.8 | J9: 1.2 | K9: 8.6 | L9: 0 | M9: 0
A10: 8th | B10: 0 | C10: 0.6 | D10: 2 | E10: 1.8 | F10: 0.2 | G10: 6.2 | H10: 0 | I10: 1 | J10: 1.6 | K10: 0.8 | L10: 0 | M10: 11.2
A11: 9th | B11: 0 | C11: 3 | D11: 0 | E11: 0 | F11: 3 | G11: 12.4 | H11: 0 | I11: 0 | J11: 14.8 | K11: 0 | L11: 0 | M11: 3.2
A12: 10th | B12: 0 | C12: 0 | D12: 0 | E12: 0 | F12: 0 | G12: 15 | H12: 0 | I12: 0.6 | J12: 0.2 | K12: 0 | L12: 0 | M12: 0
A13: 11th | B13: 0 | C13: 0 | D13: 0 | E13: 0 | F13: 0 | G13: 3 | H13: 3.4 | I13: 4.6 | J13: 0 | K13: 0 | L13: 0 | M13: 22.2
A14: 12th | B14: 0.6 | C14: 6.2 | D14: 4.2 | E14: 0 | F14: 0 | G14: 3.2 | H14: 9.8 | I14: 6.2 | J14: 0 | K14: 1.4 | L14: 0 | M14: 0.6
A15: 13th | B15: 0 | C15: 0 | D15: 3.6 | E15: 0.2 | F15: 0.4 | G15: 0 | H15: 0.6 | I15: 10 | J15: 4.2 | K15: 12 | L15: 0 | M15: 3
A16: 14th | B16: 0 | C16: 0 | D16: 0.8 | E16: 0 | F16: 0 | G16: 0.4 | H16: 6.4 | I16: 0 | J16: 0 | K16: 42.4 | L16: 0 | M16: 0
A17: 15th | B17: 0 | C17: 0 | D17: 15 | E17: 5.8 | F17: 3.4 | G17: 0.2 | H17: 0 | I17: 0 | J17: 0 | K17: 21.2 | L17: 0 | M17: 0
A18: 16th | B18: 0.6 | C18: 0 | D18: 17 | E18: 0.4 | F18: 20.2 | G18: 0.4 | H18: 0 | I18: 0 | J18: 0 | K18: 20.6 | L18: 0 | M18: 0
A19: 17th | B19: 0 | C19: 0 | D19: 4.6 | E19: 3.8 | F19: 2.6 | G19: 0.2 | H19: 0 | I19: 19.8 | J19: 8.6 | K19: 4.6 | L19: 0.4 | M19: 0
A20: 18th | B20: 0 | C20: 0 | D20: 0 | E20: 0.4 | F20: 0 | G20: 0.2 | H20: 0 | I20: 1 | J20: 11.6 | K20: 0.2 | L20: 0 | M20: 16
A21: 19th | B21: 0 | C21: 0 | D21: 0 | E21: 0.6 | F21: 0 | G21: 0 | H21: 0.2 | I21: 0 | J21: 0 | K21: 0 | L21: 0 | M21: 2.6
A22: 20th | B22: 0 | C22: 0 | D22: 0 | E22: 0 | F22: 0 | G22: 0 | H22: 0 | I22: 6 | J22: 8.4 | K22: 0 | L22: 0 | M22: 0
A23: 21st | B23: 0 | C23: 0 | D23: 0 | E23: 0 | F23: 0.2 | G23: 2.8 | H23: 0 | I23: 2.6 | J23: 0 | K23: 0 | L23: 2 | M23: 0
A24: 22nd | B24: 0 | C24: 0 | D24: 0 | E24: 0 | F24: 0 | G24: 1 | H24: 0.6 | I24: 8.8 | J24: 20 | K24: 0 | L24: 43.2 | M24: 0
A25: 23rd | B25: 10.4 | C25: 0 | D25: 0.2 | E25: 0 | F25: 0 | G25: 0 | H25: 9 | I25: 0 | J25: 2.8 | K25: 0 | L25: 9.2 | M25: 0
A26: 24th | B26: 1.2 | C26: 0 | D26: 0 | E26: 1.8 | F26: 0 | G26: 1.8 | H26: 0 | I26: 4.2 | J26: 4 | K26: 0 | L26: 0.2 | M26: 0
A27: 25th | B27: 0 | C27: 1 | D27: 2.8 | E27: 7.6 | F27: 0 | G27: 0.2 | H27: 0 | I27: 16.8 | J27: 6 | K27: 0.6 | L27: 0 | M27: 7.2
A28: 26th | B28: 0 | C28: 0 | D28: 3.4 | E28: 10.2 | F28: 3.4 | G28: 0 | H28: 0.2 | I28: 10.6 | J28: 32.8 | K28: 0.6 | L28: 0 | M28: 0
A29: 27th | B29: 0 | C29: 0 | D29: 0 | E29: 31.8 | F29: 0 | G29: 0 | H29: 0 | I29: 2.4 | J29: 16.8 | K29: 0 | L29: 20.8 | M29: 0
A30: 28th | B30: 0 | C30: 0 | D30: 0 | E30: 17.2 | F30: 2.2 | G30: 0 | H30: 2.6 | I30: 0 | J30: 10.2 | K30: 0 | L30: 1.8 | M30: 0
A31: 29th | B31: 0 | D31: 0 | E31: 0 | F31: 0 | G31: 0.8 | H31: 2.8 | I31: 3.2 | J31: 1.4 | K31: 0 | L31: 10.4 | M31: 0
A32: 30th | B32: 0 | D32: 0.2 | E32: 0.2 | F32: 3.6 | G32: 1.4 | H32: 1 | I32: 14.4 | J32: 0 | K32: 0 | L32: 2.2 | M32: 0
A33: 31st | B33: 0 | D33: 0 | F33: 0 | H33: 19.4 | I33: 0.6 | K33: 7.8 | M33: 0
B34: =SUM(B3:B33) -> 18 | C34: =SUM(C3:C33) -> 12.6 | D34: 79.2 | E34: 107.4 | F34: 45.4 | G34: 56.4 | H34: 111 | I34: 147 | J34: 156 | K34: 124.2 | L34: 94.2 | M34: 70

Sheet 2008
A1: YEARLY RAINFALL DATA: 2008
A2: Day | B2: Jan | C2: Feb | D2: Mar | E2: Apr | F2: May | G2: Jun | H2: Jul | I2: Aug | J2: Sep | K2: Oct | L2: Nov | M2: Dec
A3: 1st | B3: 0 | C3: 5 | D3: 0 | E3: 0 | F3: 0 | G3: 0 | H3: 20 | I3: 9.8 | J3: 9.8 | K3: 0 | L3: 0.4 | M3: 6.2
A4: 2nd | B4: 0 | C4: 0 | D4: 0 | E4: 0 | F4: 3 | G4: 0 | H4: 14.8 | I4: 18.2 | J4: 2.4 | K4: 0.2 | L4: 0 | M4: 0.4
A5: 3rd | B5: 0 | C5: 0 | D5: 0 | E5: 16.8 | F5: 7.2 | G5: 0.2 | H5: 12 | I5: 5 | J5: 0.4 | K5: 0 | L5: 2.8 | M5: 5.6
A6: 4th | B6: 0 | C6: 0.8 | D6: 0 | E6: 3.2 | F6: 4.2 | G6: 0 | H6: 3.2 | I6: 0.6 | J6: 0 | K6: 14.4 | L6: 0 | M6: 0
A7: 5th | B7: 0 | C7: 0 | D7: 0 | E7: 1 | F7: 1.2 | G7: 0.8 | H7: 0 | I7: 0.8 | J7: 0 | K7: 0 | L7: 0 | M7: 1.6
A8: 6th | B8: 0 | C8: 0 | D8: 0 | E8: 1.2 | F8: 2 | G8: 0.4 | H8: 0 | J8: 0 | K8: 6.4 | L8: 0 | M8: 0
A9: 7th | B9: 0 | C9: 10.6 | D9: 0.4 | E9: 0 | F9: 8.4 | G9: 1 | H9: 0 | J9: 0 | K9: 4.2 | L9: 0 | M9: 0.8
A10: 8th | B10: 0 | C10: 3.4 | D10: 0 | E10: 0 | F10: 3.8 | G10: 0.4 | H10: 6.2 | I10: 3.8 | J10: 6 | K10: 3.6 | L10: 11.8 | M10: 0
A11: 9th | B11: 0 | C11: 8.2 | D11: 0 | E11: 0 | F11: 0.8 | G11: 0 | I11: 1.6 | J11: 0 | K11: 0 | L11: 1 | M11: 0
A12: 10th | B12: 0 | C12: 2.2 | D12: 0 | E12: 0 | F12: 1.4 | G12: 3.8 | H12: 8.4 | J12: 0.2 | K12: 0 | L12: 0 | M12: 7
A13: 11th | B13: 0 | C13: 0 | D13: 0 | E13: 0 | F13: 1.4 | G13: 2.8 | H13: 18.4 | I13: 26.8 | J13: 0 | K13: 0 | L13: 0 | M13: 0
A14: 12th | B14: 0 | C14: 0 | D14: 0 | E14: 1.2 | F14: 0 | G14: 0 | H14: 1 | I14: 3.8 | J14: 0 | K14: 0 | L14: 0 | M14: 0
A15: 13th | B15: 0 | C15: 1.6 | D15: 0 | E15: 1 | F15: 0 | G15: 18.4 | H15: 0 | I15: 14.4 | J15: 0 | K15: 0 | L15: 0 | M15: 52.4
A16: 14th | B16: 0 | C16: 0.4 | D16: 0 | E16: 1.2 | F16: 0.2 | G16: 2.4 | H16: 0 | I16: 11.6 | J16: 3.8 | K16: 0 | L16: 8 | M16: 25.6
A17: 15th | B17: 0 | C17: 0 | D17: 0 | E17: 0 | F17: 0 | G17: 2 | H17: 0 | I17: 11 | J17: 1.4 | K17: 0.4 | L17: 1 | M17: 0
A18: 16th | B18: 0 | C18: 0 | D18: 0 | E18: 0 | F18: 0.4 | G18: 0 | H18: 0.2 | I18: 3.4 | J18: 21.6 | K18: 0 | L18: 2.2 | M18: 0
A19: 17th | B19: 0 | C19: 0 | D19: 0 | E19: 0.6 | F19: 1.6 | G19: 0.2 | H19: 0.6 | I19: 2.8 | J19: 0.6 | K19: 0 | L19: 0 | M19: 1.6
A20: 18th | B20: 0 | C20: 0 | D20: 0 | E20: 0 | F20: 24.2 | G20: 0 | H20: 3 | I20: 11 | J20: 0 | K20: 0 | L20: 0 | M20: 2.6
A21: 19th | B21: 0 | C21: 0 | D21: 0 | E21: 0 | F21: 2.2 | G21: 0 | H21: 1.4 | I21: 0.4 | J21: 0 | K21: 0 | L21: 0
A22: 20th | B22: 8 | C22: 0 | D22: 0 | E22: 0 | F22: 0 | G22: 2.2 | H22: 15.8 | I22: 0.8 | J22: 2.6 | K22: 0 | L22: 0 | M22: 0
A23: 21st | B23: 1 | C23: 17 | D23: 0.6 | E23: 0 | F23: 3 | G23: 5.6 | H23: 21.4 | I23: 0.6 | J23: 0 | K23: 0 | L23: 4.2 | M23: 0
A24: 22nd | B24: 0 | C24: 0 | D24: 0 | E24: 0.2 | F24: 0 | G24: 18 | H24: 15 | I24: 11.2 | J24: 0 | K24: 4 | L24: 12.6 | M24: 0
A25: 23rd | B25: 0 | C25: 11.4 | D25: 0 | E25: 0 | F25: 0 | G25: 10.4 | H25: 0.8 | I25: 3.4 | J25: 15.2 | K25: 0 | L25: 20.4 | M25: 0.8
A26: 24th | B26: 0 | C26: 4.4 | D26: 2.4 | E26: 0 | F26: 0 | G26: 5.8 | H26: 0.2 | I26: 0.8 | J26: 0 | K26: 0 | L26: 5.6 | M26: 0
A27: 25th | B27: 0 | C27: 0.4 | D27: 6.8 | E27: 0 | F27: 0 | G27: 1 | H27: 0 | I27: 0.2 | J27: 0 | K27: 0 | L27: 0 | M27: 0
A28: 26th | B28: 0.6 | C28: 0 | D28: 0.2 | E28: 0 | F28: 0 | G28: 4.6 | H28: 0 | I28: 0 | J28: 0 | K28: 0.2 | L28: 0 | M28: 0
A29: 27th | B29: 0 | C29: 0 | D29: 13 | E29: 10.6 | F29: 0.6 | G29: 3.6 | H29: 2 | I29: 1.4 | J29: 0 | K29: 0 | L29: 0.4 | M29: 0
A30: 28th | B30: 0 | C30: 4 | D30: 2.2 | E30: 10.2 | F30: 0 | G30: 1.4 | H30: 2 | I30: 0.6 | J30: 0 | K30: 0.2 | L30: 4.6 | M30: 0
A31: 29th | B31: 0 | C31: 3.8 | D31: 0.4 | E31: 14.4 | F31: 0.4 | G31: 0 | H31: 0 | I31: 0.4 | J31: 9.2 | K31: 0 | L31: 0 | M31: 0.8
A32: 30th | B32: 0 | D32: 2.4 | E32: 0.2 | F32: 0 | G32: 0.4 | H32: 0.2 | I32: 0 | J32: 0 | K32: 0 | L32: 2.2 | M32: 6.6
A33: 31st | B33: 0.2 | D33: 8 | F33: 0 | H33: 0.6 | I33: 4 | K33: 0.4 | M33: 0.6
B34: =SUM(B3:B33) -> 9.8 | C34: =SUM(C3:C33) -> 73.2 | D34: 36.4 | E34: 61.8 | F34: 66 | G34: 85.4 | H34: 147.2 | I34: 148.4 | J34: 73.2 | K34: 34 | L34: 77.2 | M34: 112.6

Sheet 2007
A1: YEARLY RAINFALL DATA: 2007
A2: Day | B2: Jan | C2: Feb | D2: Mar | E2: Apr | F2: May | G2: Jun | H2: Jul | I2: Aug | J2: Sep | K2: Oct | L2: Nov | M2: Dec
A3: 1st | B3: 13.8 | C3: 0 | D3: 0 | E3: 0.8 | F3: 0 | G3: 7.2 | H3: 22.2 | I3: 4.8 | J3: 7.4 | K3: 6.6 | L3: 0 | M3: 0
A4: 2nd | B4: 1.6 | C4: 0 | D4: 0 | E4: 0 | F4: 0 | G4: 1.2 | H4: 8 | I4: 0 | J4: 0 | K4: 0 | L4: 11 | M4: 0
A5: 3rd | B5: 0 | C5: 0 | D5: 0 | E5: 0.4 | F5: 6.2 | G5: 0.2 | H5: 1.6 | I5: 3.4 | J5: 7.8 | K5: 0.8 | L5: 0.2 | M5: 2
A6: 4th | B6: 0 | C6: 0 | D6: 0.8 | E6: 0 | F6: 15.4 | G6: 0 | H6: 17.6 | I6: 14 | J6: 0.6 | K6: 2.2 | L6: 31.6 | M6: 23.6
A7: 5th | B7: 0 | C7: 0 | D7: 0.2 | E7: 1 | F7: 0.2 | G7: 0 | H7: 1.2 | I7: 21 | J7: 0 | K7: 6.4 | L7: 21.8 | M7: 0
A8: 6th | B8: 0 | C8: 0 | D8: 0 | E8: 1 | F8: 15.2 | G8: 0 | H8: 3.6 | I8: 12.4 | J8: 0 | K8: 16 | L8: 0 | M8: 0
A9: 7th | B9: 0.6 | C9: 0 | D9: 0 | E9: 0 | F9: 0 | G9: 1.2 | H9: 7.6 | I9: 0.4 | J9: 0 | K9: 6.4 | L9: 0 | M9: 2.2
A10: 8th | B10: 2.8 | C10: 0 | D10: 3 | E10: 0 | F10: 0 | G10: 0 | H10: 5.2 | I10: 0 | J10: 0 | K10: 0 | L10: 0 | M10: 0
A11: 9th | B11: 0 | C11: 0 | D11: 0 | E11: 0 | F11: 0 | G11: 1.8 | H11: 10.4 | I11: 0 | J11: 0 | K11: 1 | L11: 0 | M11: 0
A12: 10th | B12: 0 | C12: 0.6 | D12: 0 | E12: 0 | F12: 0 | H12: 0.2 | I12: 8.8 | J12: 1.4 | K12: 0 | L12: 0 | M12: 0
A13: 11th | B13: 0 | C13: 0.8 | D13: 0 | E13: 0 | F13: 0 | G13: 10.2 | H13: 0 | I13: 10.2 | J13: 9.6 | K13: 0 | L13: 0 | M13: 0
A14: 12th | B14: 0 | C14: 0 | D14: 0.4 | E14: 0 | F14: 0 | G14: 9.8 | H14: 1.4 | I14: 19 | J14: 4.4 | K14: 9.6 | L14: 0 | M14: 0
A15: 13th | B15: 0 | C15: 0 | D15: 0 | E15: 0 | F15: 0 | G15: 20.4 | H15: 3 | I15: 2.8 | J15: 0 | K15: 6.4 | L15: 0 | M15: 0
A16: 14th | B16: 0 | C16: 0 | D16: 0 | E16: 0 | F16: 0 | G16: 0 | H16: 7.2 | I16: 1.4 | J16: 1.4 | K16: 1 | L16: 0 | M16: 0
A17: 15th | B17: 0 | C17: 0 | D17: 0 | E17: 1.2 | F17: 0.6 | G17: 0 | H17: 1.2 | I17: 0 | J17: 11.6 | K17: 0 | L17: 0 | M17: 0
A18: 16th | B18: 0 | C18: 0 | D18: 6.4 | E18: 0.2 | F18: 4 | G18: 0.4 | H18: 0 | I18: 0 | J18: 0 | K18: 3.6 | L18: 0 | M18: 5.6
A19: 17th | B19: 0 | C19: 0 | D19: 0.4 | E19: 0 | F19: 0 | G19: 0.4 | H19: 0 | I19: 0 | J19: 17.8 | K19: 1.2 | L19: 0 | M19: 0
A20: 18th | B20: 0 | C20: 0 | D20: 0 | E20: 0 | F20: 8.8 | G20: 3.4 | H20: 37.2 | J20: 0 | K20: 0 | L20: 0 | M20: 0
A21: 19th | B21: 5.6 | C21: 6.2 | D21: 0 | E21: 0 | G21: 0.4 | H21: 8 | I21: 3.2 | J21: 0 | K21: 0 | L21: 0 | M21: 0
A22: 20th | B22: 0.2 | C22: 0 | D22: 0 | E22: 0 | F22: 13.6 | G22: 5.2 | H22: 2.4 | I22: 0 | J22: 5.2 | K22: 0 | L22: 0 | M22: 0.6
A23: 21st | B23: 15.8 | C23: 0 | D23: 1.2 | E23: 0 | F23: 1.4 | G23: 25 | H23: 0 | I23: 0 | J23: 0 | K23: 0 | L23: 13.6 | M23: 6.2
A24: 22nd | B24: 8.2 | C24: 0 | D24: 0 | E24: 12.8 | F24: 7.2 | G24: 1.4 | H24: 0.2 | I24: 0.8 | J24: 0 | K24: 0 | L24: 12.6 | M24: 70.4
A25: 23rd | B25: 0 | C25: 0 | D25: 0 | E25: 0.4 | F25: 0.4 | G25: 0.8 | H25: 0 | I25: 0 | J25: 0 | K25: 5.4 | L25: 2 | M25: 16.6
A26: 24th | B26: 1.4 | C26: 0 | D26: 18.2 | E26: 0 | F26: 1 | G26: 0 | H26: 0 | I26: 0 | J26: 0 | K26: 0 | L26: 0 | M26: 8.2
A27: 25th | B27: 0 | C27: 0 | D27: 4.8 | E27: 0 | F27: 0 | G27: 0 | H27: 0 | I27: 0 | J27: 2.2 | K27: 0 | L27: 0 | M27: 1
A28: 26th | B28: 0 | C28: 0 | D28: 0 | E28: 0 | F28: 0 | G28: 0 | H28: 1.2 | I28: 0.4 | J28: 0 | K28: 0 | L28: 0 | M28: 0
A29: 27th | B29: 4.8 | C29: 0 | D29: 0 | E29: 0 | F29: 0 | G29: 17.8 | H29: 1.4 | I29: 0 | J29: 0 | K29: 0 | L29: 0 | M29: 0
A30: 28th | B30: 6 | C30: 31.4 | D30: 0 | E30: 10.2 | F30: 0 | G30: 19.4 | H30: 5.8 | I30: 0 | K30: 0 | L30: 0 | M30: 0
A31: 29th | B31: 2.2 | D31: 10.2 | E31: 0.6 | F31: 0 | G31: 0.2 | H31: 1.6 | I31: 0 | J31: 12.4 | K31: 4.8 | L31: 0.2 | M31: 0
A32: 30th | B32: 0 | D32: 8.4 | E32: 3 | F32: 11.8 | G32: 18.4 | H32: 0.8 | I32: 0 | J32: 14.2 | K32: 0 | L32: 0 | M32: 0
A33: 31st | B33: 1.2 | D33: 3.8 | F33: 7.2 | H33: 0.2 | I33: 1.6 | K33: 0 | M33: 0
B34: =SUM(B3:B33) -> 64.2 | C34: =SUM(C3:C33) -> 39 | D34: 57.8 | E34: 31.6 | F34: 93 | G34: 144.8 | H34: 149.2 | I34: 104.2 | J34: 96 | K34: 71.4 | L34: 93 | M34: 136.4

Sheet 2006
A1: YEARLY RAINFALL DATA: 2006
A2: Day | B2: Jan | C2: Feb | D2: Mar | E2: Apr | F2: May | G2: Jun | H2: Jul | I2: Aug | J2: Sep | K2: Oct | L2: Nov | M2: Dec
A3: 1st | B3: 0 | C3: 2.2 | D3: 0 | E3: 10 | F3: 5.6 | G3: 0.4 | H3: 0.4 | I3: 3 | J3: 0 | K3: 0 | L3: 0 | M3: 0
A4: 2nd | B4: 11 | C4: 6.8 | D4: 0 | E4: 1.2 | G4: 0.6 | H4: 0.6 | J4: 0 | K4: 0 | L4: 7.8 | M4: 0.2
A5: 3rd | B5: 1.6 | C5: 0 | D5: 0 | E5: 0.4 | F5: 2.8 | G5: 0.6 | H5: 3.6 | I5: 1.8 | J5: 2.8 | K5: 0 | L5: 11.6 | M5: 2.8
A6: 4th | B6: 0 | C6: 0 | D6: 0 | E6: 0.4 | F6: 12.2 | G6: 0 | H6: 0 | I6: 4.8 | J6: 11 | K6: 0 | L6: 0.2 | M6: 1.4
A7: 5th | B7: 0 | C7: 0 | D7: 0 | E7: 0 | F7: 2.2 | G7: 0 | H7: 0 | I7: 0.4 | J7: 1 | K7: 5.2 | L7: 0 | M7: 0
A8: 6th | B8: 0 | C8: 0 | D8: 0 | E8: 30 | F8: 8 | G8: 0.2 | H8: 9.4 | I8: 0 | J8: 6 | K8: 0 | L8: 0.4 | M8: 0.8
A9: 7th | B9: 0 | C9: 0.2 | D9: 1.2 | E9: 18.2 | F9: 17 | G9: 0.4 | H9: 2.8 | I9: 0 | J9: 2.6 | K9: 0 | L9: 0 | M9: 0
A10: 8th | B10: 0 | C10: 0 | D10: 0 | E10: 3.8 | F10: 17.4 | G10: 0 | H10: 2.2 | I10: 0 | J10: 2.6 | K10: 1 | L10: 0 | M10: 0
A11: 9th | B11: 0 | C11: 0 | D11: 0 | E11: 0.2 | F11: 0.2 | G11: 0 | H11: 0.2 | I11: 0.6 | J11: 2.2 | K11: 2.4 | L11: 0 | M11: 0
A12: 10th | B12: 0 | C12: 10 | D12: 0 | E12: 0 | F12: 20 | G12: 0.4 | H12: 0 | I12: 3.8 | J12: 0.2 | K12: 0 | L12: 0 | M12: 0
A13: 11th | B13: 14.4 | C13: 3.8 | D13: 0 | E13: 0 | F13: 0 | G13: 1.6 | H13: 1 | I13: 0.2 | J13: 0 | K13: 0 | L13: 0 | M13: 0.4
A14: 12th | B14: 0.2 | C14: 0 | D14: 0 | E14: 0 | F14: 1.2 | G14: 3.2 | H14: 5 | I14: 0.8 | J14: 0 | K14: 0 | L14: 3.6 | M14: 0
A15: 13th | B15: 0 | C15: 1.6 | D15: 22.2 | E15: 0 | F15: 7 | G15: 1.2 | H15: 3 | I15: 0 | J15: 0 | K15: 0 | L15: 2.6 | M15: 0
A16: 14th | B16: 0 | C16: 0.8 | D16: 0 | E16: 5.6 | F16: 8.2 | G16: 0 | H16: 0.2 | I16: 0.2 | J16: 0 | K16: 0 | M16: 0
A17: 15th | B17: 0.2 | C17: 0 | D17: 0.4 | E17: 17 | F17: 1.8 | G17: 0 | H17: 3 | I17: 1.2 | J17: 0 | K17: 1.8 | L17: 23.4 | M17: 1.4
A18: 16th | B18: 0.2 | C18: 0.8 | D18: 0 | E18: 4 | F18: 0 | G18: 3.6 | H18: 3 | I18: 0 | J18: 0 | K18: 0.6 | L18: 1.4 | M18: 0
A19: 17th | B19: 0 | C19: 0 | D19: 18 | E19: 0 | F19: 0 | G19: 0.6 | H19: 3.4 | I19: 8.2 | J19: 0 | K19: 0 | L19: 0 | M19: 0
A20: 18th | B20: 0 | C20: 0 | D20: 0 | E20: 0 | F20: 0 | G20: 2.4 | H20: 2 | I20: 0.2 | J20: 0 | K20: 3.6 | L20: 0 | M20: 0
A21: 19th | B21: 0 | C21: 0 | D21: 0 | E21: 0 | F21: 0 | G21: 0 | H21: 0.2 | I21: 1.2 | J21: 0.4 | K21: 0.6 | L21: 0 | M21: 0
A22: 20th | B22: 0 | C22: 0 | D22: 0 | E22: 12.4 | F22: 1.4 | G22: 0.2 | H22: 0 | I22: 0 | J22: 15.4 | K22: 0.2 | L22: 0 | M22: 0
A23: 21st | B23: 0 | C23: 0 | D23: 0 | E23: 30 | F23: 0 | G23: 0 | H23: 0.2 | I23: 0 | J23: 1.8 | K23: 5.6 | L23: 0 | M23: 0
A24: 22nd | B24: 0 | C24: 0 | D24: 0 | E24: 10.2 | F24: 7 | G24: 0 | H24: 0 | I24: 1.2 | J24: 0 | K24: 0.6 | L24: 1 | M24: 0
A25: 23rd | B25: 0 | C25: 0 | D25: 0 | E25: 5.8 | F25: 0.8 | G25: 4.2 | H25: 2 | I25: 0.2 | J25: 2.2 | K25: 0 | L25: 0.6 | M25: 19.4
A26: 24th | B26: 0.4 | C26: 0 | D26: 0 | E26: 1 | F26: 1.8 | G26: 0.8 | H26: 0 | I26: 6.4 | J26: 19.4 | K26: 0 | L26: 0 | M26: 0
A27: 25th | B27: 0 | C27: 0 | D27: 0 | E27: 0 | F27: 0 | G27: 7.4 | H27: 0.4 | I27: 3.6 | J27: 5.6 | K27: 1 | L27: 0 | M27: 16.6
A28: 26th | B28: 0 | C28: 9.4 | D28: 0 | E28: 0 | F28: 0 | G28: 0.2 | H28: 0.2 | I28: 0 | J28: 0 | K28: 0 | L28: 0 | M28: 11.4
A29: 27th | B29: 8.6 | C29: 0 | D29: 0 | E29: 0 | F29: 0 | G29: 0 | H29: 0 | I29: 0.2 | J29: 0 | K29: 0 | L29: 0 | M29: 2.8
A30: 28th | B30: 3.2 | C30: 0 | D30: 0.2 | E30: 0 | F30: 0 | G30: 0 | H30: 0 | I30: 0 | J30: 0 | K30: 13.4 | L30: 0 | M30: 1
A31: 29th | B31: 5.2 | D31: 0 | E31: 0.2 | F31: 2.8 | G31: 0 | H31: 0 | I31: 0 | J31: 0 | K31: 0.4 | L31: 0.6 | M31: 0
A32: 30th | B32: 11.2 | D32: 0 | E32: 0 | F32: 0 | G32: 0 | H32: 1.4 | I32: 0 | J32: 0 | K32: 0 | L32: 0 | M32: 0
A33: 31st | B33: 0.8 | D33: 0.2 | F33: 0 | H33: 13.2 | I33: 0 | K33: 0 | M33: 0
B34: =SUM(B3:B33) -> 57 | C34: =SUM(C3:C33) -> 35.6 | D34: 42.2 | E34: 150.4 | F34: 117.4 | G34: 28 | H34: 57.4 | I34: 38 | J34: 73.2 | K34: 36.4 | L34: 53.2 | M34: 58.2

Sheet 2005
A1: YEARLY RAINFALL DATA: 2005
A2: Day | B2: Jan | C2: Feb | D2: Mar | E2: Apr | F2: May | G2: Jun | H2: Jul | I2: Aug | J2: Sep | K2: Oct | L2: Nov | M2: Dec
A3: 1st | B3: 0 | C3: 0 | D3: 0 | E3: 0 | F3: 12.6 | G3: 0.2 | H3: 16 | I3: 0 | J3: 3.4 | K3: 1 | L3: 0 | M3: 0
A4: 2nd | B4: 0 | C4: 18.6 | D4: 0.2 | E4: 0 | F4: 0 | G4: 0.8 | H4: 12.6 | I4: 0 | J4: 0 | K4: 0 | L4: 0 | M4: 0
A5: 3rd | B5: 0 | C5: 82.2 | D5: 0 | E5: 1 | F5: 0 | G5: 0 | H5: 1.2 | I5: 0 | J5: 0 | K5: 0 | L5: 3 | M5: 32.8
A6: 4th | B6: 4.6 | C6: 2.6 | D6: 0 | E6: 7.4 | F6: 0 | G6: 0 | H6: 0 | I6: 27.8 | J6: 0 | K6: 0 | L6: 2.4 | M6: 9.2
A7: 5th | B7: 22.4 | C7: 0.2 | D7: 14.4 | E7: 0 | F7: 0 | G7: 0 | H7: 0 | I7: 1.8 | J7: 0 | K7: 0 | L7: 0 | M7: 1.2
A8: 6th | B8: 13.6 | C8: 8.6 | D8: 8.6 | E8: 0 | F8: 0 | G8: 0 | H8: 0 | I8: 0 | J8: 0 | K8: 1 | L8: 0 | M8: 0
A9: 7th | B9: 3 | C9: 0 | D9: 3 | E9: 0 | F9: 0 | G9: 0 | H9: 0 | I9: 6.2 | J9: 0 | K9: 2.4 | L9: 0.2 | M9: 24.2
A10: 8th | B10: 3.4 | C10: 9 | D10: 7 | E10: 0 | F10: 0 | G10: 0 | H10: 0.4 | I10: 14 | J10: 0 | K10: 20.4 | L10: 20.2 | M10: 1.4
A11: 9th | B11: 0 | C11: 21 | D11: 1.4 | E11: 0 | F11: 0 | G11: 3 | H11: 5.4 | I11: 0 | J11: 1 | K11: 22 | L11: 0.2 | M11: 0
A12: 10th | B12: 0 | C12: 0.2 | D12: 0 | E12: 0 | F12: 0 | G12: 0 | H12: 6.2 | I12: 32.2 | J12: 5 | K12: 1.8 | L12: 0 | M12: 1.4
A13: 11th | B13: 0 | C13: 0 | D13: 0 | E13: 4.4 | F13: 0 | G13: 9.8 | H13: 0.6 | I13: 24.6 | J13: 5.4 | K13: 7.4 | L13: 4 | M13: 0
A14: 12th | B14: 0 | C14: 3 | D14: 0 | E14: 0 | F14: 1.4 | G14: 0.6 | H14: 0.2 | I14: 6.6 | J14: 24.4 | K14: 4.8 | L14: 0 | M14: 0
A15: 13th | B15: 0 | C15: 0 | D15: 0 | E15: 0 | F15: 0 | G15: 0 | H15: 0.4 | I15: 1.8 | J15: 6.8 | K15: 0 | L15: 0.4 | M15: 6.6
A16: 14th | B16: 0 | C16: 0 | D16: 0 | E16: 9.6 | F16: 0 | G16: 7 | H16: 4 | I16: 0.2 | J16: 0.6 | K16: 1.4 | L16: 0 | M16: 0
A17: 15th | B17: 0 | C17: 5.6 | D17: 0 | E17: 2.8 | F17: 0 | G17: 0 | H17: 1 | I17: 8.2 | J17: 5.2 | K17: 0 | L17: 39.6 | M17: 0
A18: 16th | B18: 0 | C18: 0 | D18: 1.2 | E18: 0 | F18: 2.8 | G18: 5.6 | H18: 5 | I18: 2.8 | J18: 0.6 | K18: 0 | L18: 0 | M18: 2.4
A19: 17th | B19: 1 | C19: 0.6 | D19: 1 | E19: 0 | F19: 0 | G19: 13 | H19: 19.6 | I19: 0 | J19: 10.8 | K19: 0 | L19: 0 | M19: 0
A20: 18th | B20: 0.6 | C20: 0 | D20: 0 | E20: 0 | F20: 0 | G20: 0 | H20: 7.4 | I20: 0 | J20: 7.6 | K20: 0 | L20: 0 | M20: 6
A21: 19th | B21: 0 | C21: 0 | D21: 0 | E21: 2.4 | F21: 0.2 | G21: 3.6 | H21: 0.6 | I21: 3.2 | J21: 4 | K21: 0 | L21: 4.2 | M21: 6
A22: 20th | B22: 0 | C22: 0 | D22: 0 | E22: 0.8 | F22: 0 | G22: 13 | H22: 0 | I22: 7 | J22: 6.2 | K22: 4.2 | L22: 1 | M22: 0
A23: 21st | B23: 0 | C23: 0 | D23: 0 | E23: 0.2 | F23: 0 | G23: 3.4 | H23: 0.2 | I23: 0.4 | J23: 0.6 | K23: 8.8 | L23: 0 | M23: 0
A24: 22nd | B24: 0 | C24: 0 | D24: 0 | E24: 0 | F24: 0 | G24: 0.2 | H24: 0 | I24: 7 | J24: 0 | K24: 0.4 | L24: 0 | M24: 4.2
A25: 23rd | B25: 0 | C25: 0 | D25: 1.4 | E25: 0 | F25: 0 | G25: 5.4 | H25: 0.2 | I25: 1.8 | J25: 1.4 | K25: 0.2 | L25: 0 | M25: 0
A26: 24th | B26: 0 | C26: 0 | D26: 1.8 | E26: 0 | F26: 1.4 | G26: 0.2 | H26: 0.8 | I26: 1.4 | J26: 1.2 | K26: 0 | L26: 0 | M26: 13.8
A27: 25th | B27: 0 | C27: 0 | D27: 0 | E27: 0 | F27: 2.8 | G27: 0 | H27: 9.8 | I27: 0 | J27: 0 | K27: 2.8 | L27: 8.8 | M27: 3.6
A28: 26th | B28: 0 | C28: 0.8 | D28: 0 | E28: 0 | F28: 2 | G28: 0 | H28: 5.4 | I28: 0 | J28: 0.6 | K28: 0.8 | L28: 1.4 | M28: 2.6
A29: 27th | B29: 0 | C29: 0 | D29: 0 | E29: 0 | F29: 5.8 | G29: 0 | H29: 8 | I29: 0 | J29: 5 | K29: 2.2 | L29: 0.8 | M29: 0
A30: 28th | B30: 0 | C30: 0 | D30: 4 | E30: 0 | F30: 10.4 | G30: 0 | H30: 0.6 | I30: 0 | J30: 0.8 | K30: 0 | L30: 0 | M30: 0
A31: 29th | B31: 3.8 | D31: 0 | E31: 8.2 | F31: 1.6 | G31: 0 | H31: 5.2 | I31: 0 | J31: 21 | K31: 0.8 | L31: 2.2 | M31: 0
A32: 30th | B32: 0.6 | D32: 0 | E32: 0.4 | F32: 0.4 | G32: 0.6 | H32: 0 | I32: 3.6 | J32: 0.4 | K32: 0 | L32: 0.8 | M32: 0
A33: 31st | B33: 0 | D33: 0 | F33: 5.8 | H33: 0.2 | I33: 28.4 | K33: 0.2 | M33: 0
B34: =SUM(B3:B33) -> 53 | C34: =SUM(C3:C33) -> 152.4 | D34: 44 | E34: 37.2 | F34: 47.2 | G34: 66.4 | H34: 111 | I34: 179 | J34: 112 | K34: 82.6 | L34: 89.2 | M34: 115.4

Sheet 2004
A1: YEARLY RAINFALL DATA: 2004
A2: Day | B2: Jan | C2: Feb | D2: Mar | E2: Apr | F2: May | G2: Jun | H2: Jul | I2: Aug | J2: Sep | K2: Oct | L2: Nov | M2: Dec
A3: 1st | B3: 0 | C3: 0.6 | D3: 0 | E3: 0 | F3: 16.4 | G3: 0 | H3: 16.8 | I3: 0 | J3: 5.2 | K3: 0 | L3: 0 | M3: 8.4
A4: 2nd | B4: 0 | C4: 3.8 | D4: 0 | E4: 1 | F4: 14.4 | G4: 0 | H4: 0.8 | I4: 2.2 | J4: 2.4 | K4: 0 | L4: 0 | M4: 0.6
A5: 3rd | B5: 0 | C5: 3 | D5: 0 | E5: 0 | G5: 0.2 | H5: 0.2 | I5: 7.4 | J5: 2.2 | K5: 0.2 | L5: 15.4 | M5: 0
A6: 4th | B6: 11.2 | C6: 0 | D6: 0 | E6: 0 | F6: 8.4 | G6: 13 | H6: 0.6 | I6: 0.6 | J6: 2.4 | K6: 1.2 | L6: 0 | M6: 0
A7: 5th | B7: 0 | C7: 0 | D7: 0 | E7: 0 | F7: 4 | G7: 3.6 | H7: 3 | I7: 9 | J7: 0.2 | K7: 1.2 | L7: 27.2 | M7: 0
A8: 6th | B8: 0 | C8: 0 | D8: 0 | E8: 0 | F8: 0.2 | G8: 0 | H8: 16 | I8: 4.6 | J8: 0 | K8: 0 | L8: 2.4 | M8: 0
A9: 7th | B9: 0.2 | C9: 0 | D9: 0.8 | E9: 0 | F9: 0.4 | G9: 0 | H9: 13.4 | I9: 3.4 | J9: 2.2 | K9: 0 | L9: 14 | M9: 0
A10: 8th | B10: 10.6 | C10: 0 | D10: 0.6 | E10: 0 | F10: 0.6 | G10: 0 | H10: 3 | I10: 0.2 | J10: 9 | K10: 17.2 | L10: 2.4 | M10: 10.4
A11: 9th | B11: 7.2 | C11: 0 | D11: 3.4 | E11: 0 | F11: 0.2 | G11: 0 | H11: 0 | I11: 4.8 | J11: 7 | K11: 4.8 | L11: 0 | M11: 21.4
A12: 10th | B12: 0 | C12: 0 | D12: 2.6 | E12: 0 | F12: 0 | G12: 10.6 | H12: 0 | I12: 11.2 | J12: 2.4 | K12: 0.2 | L12: 0 | M12: 4
A13: 11th | B13: 0.6 | C13: 28.4 | D13: 0 | E13: 1.8 | F13: 0.2 | G13: 0.6 | H13: 0 | I13: 4.8 | J13: 24.8 | K13: 0 | L13: 0 | M13: 0
A14: 12th | B14: 0 | C14: 1.2 | D14: 0 | E14: 0 | F14: 0 | G14: 0 | H14: 9 | I14: 0 | J14: 31.6 | K14: 0 | L14: 8.2 | M14: 0
A15: 13th | B15: 0 | C15: 0 | D15: 0 | E15: 0 | F15: 0 | G15: 0 | H15: 6 | I15: 0 | J15: 5.2 | K15: 0 | L15: 41.4 | M15: 0.8
A16: 14th | B16: 0.4 | C16: 0 | D16: 0 | E16: 0 | F16: 0 | G16: 7 | H16: 2.6 | I16: 11.4 | J16: 1.6 | K16: 10.6 | L16: 9 | M16: 6.2
A17: 15th | B17: 0 | C17: 0.2 | D17: 0 | E17: 0 | F17: 0 | G17: 25.2 | H17: 3 | I17: 12.2 | J17: 7.4 | K17: 4 | L17: 3.8 | M17: 1.2
A18: 16th | B18: 0 | C18: 0 | D18: 0 | E18: 0.8 | F18: 2.8 | G18: 12.8 | H18: 0 | I18: 0 | J18: 0.4 | K18: 6.8 | L18: 0.2 | M18: 0
A19: 17th | B19: 0.6 | C19: 0 | D19: 0 | E19: 8 | F19: 3.8 | G19: 2.8 | H19: 14.4 | I19: 0 | J19: 0 | K19: 0 | L19: 0 | M19: 0
A20: 18th | B20: 7.2 | C20: 0 | D20: 0 | E20: 1.4 | F20: 6.2 | G20: 15.2 | H20: 1 | I20: 0 | J20: 0 | K20: 0 | L20: 0 | M20: 0
A21: 19th | B21: 0 | C21: 0 | D21: 0 | E21: 0 | F21: 4 | G21: 13 | H21: 0 | I21: 0 | J21: 0 | K21: 0 | L21: 2 | M21: 0
A22: 20th | B22: 0 | C22: 0 | E22: 0 | F22: 0 | G22: 8 | H22: 3.4 | I22: 0 | J22: 0 | K22: 0 | L22: 0.4 | M22: 1.4
A23: 21st | B23: 0 | C23: 0 | D23: 2 | E23: 0 | F23: 1 | G23: 13 | H23: 1.8 | I23: 0 | J23: 0 | K23: 0 | L23: 1.2 | M23: 0
A24: 22nd | B24: 0 | C24: 1.6 | D24: 0 | E24: 0 | F24: 0 | G24: 0.6 | H24: 0 | I24: 0.8 | J24: 0 | K24: 0 | L24: 1 | M24: 0
A25: 23rd | B25: 0 | C25: 1.4 | D25: 0 | E25: 30 | F25: 0 | G25: 0 | H25: 0.2 | I25: 0.8 | J25: 15.2 | K25: 1.2 | L25: 0 | M25: 0
A26: 24th | B26: 0 | C26: 0 | D26: 0 | E26: 66.2 | G26: 1.6 | H26: 6.4 | I26: 0 | J26: 4.6 | K26: 0 | L26: 0 | M26: 0
A27: 25th | B27: 0 | C27: 0 | D27: 0 | E27: 1.4 | F27: 4 | G27: 5.6 | H27: 0.6 | I27: 0 | J27: 0.6 | K27: 0 | L27: 0 | M27: 0
A28: 26th | B28: 0 | C28: 0 | D28: 0 | E28: 1.8 | F28: 6 | G28: 14.2 | H28: 18.8 | I28: 0 | J28: 0 | K28: 0 | L28: 0 | M28: 0
A29: 27th | B29: 0 | C29: 0 | D29: 0 | F29: 3.6 | G29: 3.8 | H29: 0.8 | I29: 4.2 | J29: 1.8 | K29: 17.2 | L29: 0 | M29: 4
A30: 28th | B30: 0 | C30: 0 | D30: 0 | E30: 0 | F30: 6 | G30: 0.4 | H30: 9.6 | I30: 0 | J30: 0 | K30: 16.2 | L30: 0 | M30: 4.6
A31: 29th | B31: 10.8 | C31: 2.4 | D31: 0 | F31: 3.6 | G31: 5 | H31: 0.8 | I31: 0 | J31: 13.6 | K31: 0 | L31: 0 | M31: 0
A32: 30th | B32: 8 | D32: 34 | E32: 22 | F32: 0.6 | G32: 0.2 | H32: 0 | I32: 13 | J32: 3.8 | K32: 0 | L32: 0 | M32: 0
A33: 31st | B33: 3.4 | D33: 2.8 | F33: 1.4 | H33: 0 | I33: 14.6 | K33: 0 | M33: 0
B34: =SUM(B3:B33) -> 60.2 | C34: =SUM(C3:C33) -> 42.6 | D34: 46.2 | E34: 134.4 | F34: 87.8 | G34: 156.4 | H34: 132.2 | I34: 105.2 | J34: 143.6 | K34: 80.8 | L34: 128.6 | M34: 63

Sheet 2003
A1: YEARLY RAINFALL DATA: 2007
A2: Day | B2: Jan | C2: Feb | D2: Mar | E2: Apr | F2: May | G2: Jun | H2: Jul | I2: Aug | J2: Sep | K2: Oct | L2: Nov | M2: Dec
A3: 1st | B3: 13.8 | C3: 0 | D3: 0 | E3: 0.8 | F3: 0 | G3: 7.2 | H3: 22.2 | I3: 4.8 | J3: 7.4 | K3: 6.6 | L3: 0 | M3: 0
A4: 2nd | B4: 1.6 | C4: 0 | D4: 0 | E4: 0 | F4: 0 | G4: 1.2 | H4: 8 | I4: 0 | J4: 0 | K4: 0 | L4: 11 | M4: 0
A5: 3rd | B5: 0 | C5: 0 | D5: 0 | E5: 0.4 | F5: 6.2 | G5: 0.2 | H5: 1.6 | I5: 3.4 | J5: 7.8 | K5: 0.8 | L5: 0.2 | M5: 2
A6: 4th | B6: 0 | C6: 0 | D6: 0.8 | E6: 0 | F6: 15.4 | G6: 0 | H6: 17.6 | I6: 14 | J6: 0.6 | K6: 2.2 | L6: 31.6 | M6: 23.6
A7: 5th | B7: 0 | C7: 0 | D7: 0.2 | E7: 1 | F7: 0.2 | G7: 0 | H7: 1.2 | I7: 21 | J7: 0 | K7: 6.4 | L7: 21.8 | M7: 0
A8: 6th | B8: 0 | C8: 0 | D8: 0 | E8: 1 | F8: 15.2 | G8: 0 | H8: 3.6 | I8: 12.4 | J8: 0 | K8: 16 | L8: 0 | M8: 0
A9: 7th | B9: 0.6 | C9: 0 | D9: 0 | E9: 0 | F9: 0 | G9: 1.2 | H9: 7.6 | I9: 0.4 | J9: 0 | K9: 6.4 | L9: 0 | M9: 2.2
A10: 8th | B10: 2.8 | C10: 0 | D10: 3 | E10: 0 | F10: 0 | G10: 0 | H10: 5.2 | I10: 0 | J10: 0 | K10: 0 | L10: 0 | M10: 0
A11: 9th | B11: 0 | C11: 0 | D11: 0 | E11: 0 | F11: 0 | G11: 1.8 | H11: 10.4 | I11: 0 | J11: 0 | K11: 1 | L11: 0 | M11: 0
A12: 10th | B12: 0 | C12: 0.6 | D12: 0 | E12: 0 | F12: 0 | H12: 0.2 | I12: 8.8 | J12: 1.4 | K12: 0 | L12: 0 | M12: 0
A13: 11th | B13: 0 | C13: 0.8 | D13: 0 | E13: 0 | F13: 0 | G13: 10.2 | H13: 0 | I13: 10.2 | J13: 9.6 | K13: 0 | L13: 0 | M13: 0
A14: 12th | B14: 0 | C14: 0 | D14: 0.4 | E14: 0 | F14: 0 | G14: 9.8 | H14: 1.4 | I14: 19 | J14: 4.4 | K14: 9.6 | L14: 0 | M14: 0
A15: 13th | B15: 0 | C15: 0 | D15: 0 | E15: 0 | F15: 0 | G15: 20.4 | H15: 3 | I15: 2.8 | J15: 0 | K15: 6.4 | L15: 0 | M15: 0
A16: 14th | B16: 0 | C16: 0 | D16: 0 | E16: 0 | F16: 0 | G16: 0 | H16: 7.2 | I16: 1.4 | J16: 1.4 | K16: 1 | L16: 0 | M16: 0
A17: 15th | B17: 0 | C17: 0 | D17: 0 | E17: 1.2 | F17: 0.6 | G17: 0 | H17: 1.2 | I17: 0 | J17: 11.6 | K17: 0 | L17: 0 | M17: 0
A18: 16th | B18: 0 | C18: 0 | D18: 6.4 | E18: 0.2 | F18: 4 | G18: 0.4 | H18: 0 | I18: 0 | J18: 0 | K18: 3.6 | L18: 0 | M18: 5.6
A19: 17th | B19: 0 | C19: 0 | D19: 0.4 | E19: 0 | F19: 0 | G19: 0.4 | H19: 0 | I19: 0 | J19: 17.8 | K19: 1.2 | L19: 0 | M19: 0
A20: 18th | B20: 0 | C20: 0 | D20: 0 | E20: 0 | F20: 8.8 | G20: 3.4 | H20: 37.2 | J20: 0 | K20: 0 | L20: 0 | M20: 0
A21: 19th | B21: 5.6 | C21: 6.2 | D21: 0 | E21: 0 | G21: 0.4 | H21: 8 | I21: 3.2 | J21: 0 | K21: 0 | L21: 0 | M21: 0
A22: 20th | B22: 0.2 | C22: 0 | D22: 0 | E22: 0 | F22: 13.6 | G22: 5.2 | H22: 2.4 | I22: 0 | J22: 5.2 | K22: 0 | L22: 0 | M22: 0.6
A23: 21st | B23: 15.8 | C23: 0 | D23: 1.2 | E23: 0 | F23: 1.4 | G23: 25 | H23: 0 | I23: 0 | J23: 0 | K23: 0 | L23: 13.6 | M23: 6.2
A24: 22nd | B24: 8.2 | C24: 0 | D24: 0 | E24: 12.8 | F24: 7.2 | G24: 1.4 | H24: 0.2 | I24: 0.8 | J24: 0 | K24: 0 | L24: 12.6 | M24: 70.4
A25: 23rd | B25: 0 | C25: 0 | D25: 0 | E25: 0.4 | F25: 0.4 | G25: 0.8 | H25: 0 | I25: 0 | J25: 0 | K25: 5.4 | L25: 2 | M25: 16.6
A26: 24th | B26: 1.4 | C26: 0 | D26: 18.2 | E26: 0 | F26: 1 | G26: 0 | H26: 0 | I26: 0 | J26: 0 | K26: 0 | L26: 0 | M26: 8.2
A27: 25th | B27: 0 | C27: 0 | D27: 4.8 | E27: 0 | F27: 0 | G27: 0 | H27: 0 | I27: 0 | J27: 2.2 | K27: 0 | L27: 0 | M27: 1
A28: 26th | B28: 0 | C28: 0 | D28: 0 | E28: 0 | F28: 0 | G28: 0 | H28: 1.2 | I28: 0.4 | J28: 0 | K28: 0 | L28: 0 | M28: 0
A29: 27th | B29: 4.8 | C29: 0 | D29: 0 | E29: 0 | F29: 0 | G29: 17.8 | H29: 1.4 | I29: 0 | J29: 0 | K29: 0 | L29: 0 | M29: 0
A30: 28th | B30: 6 | C30: 31.4 | D30: 0 | E30: 10.2 | F30: 0 | G30: 19.4 | H30: 5.8 | I30: 0 | K30: 0 | L30: 0 | M30: 0
A31: 29th | B31: 2.2 | D31: 10.2 | E31: 0.6 | F31: 0 | G31: 0.2 | H31: 1.6 | I31: 0 | J31: 12.4 | K31: 4.8 | L31: 0.2 | M31: 0
A32: 30th | B32: 0 | D32: 8.4 | E32: 3 | F32: 11.8 | G32: 18.4 | H32: 0.8 | I32: 0 | J32: 14.2 | K32: 0 | L32: 0 | M32: 0
A33: 31st | B33: 1.2 | D33: 3.8 | F33: 7.2 | H33: 0.2 | I33: 1.6 | K33: 0 | M33: 0
B34: =SUM(B3:B33) -> 64.2 | C34: =SUM(C3:C33) -> 39 | D34: 57.8 | E34: 31.6 | F34: 93 | G34: 144.8 | H34: 149.2 | I34: 104.2 | J34: 96 | K34: 71.4 | L34: 93 | M34: 136.4

Sheet 2002
A1: YEARLY RAINFALL DATA: 2007
A2: Day | B2: Jan | C2: Feb | D2: Mar | E2: Apr | F2: May | G2: Jun | H2: Jul | I2: Aug | J2: Sep | K2: Oct | L2: Nov | M2: Dec
A3: 1st | B3: 13.8 | C3: 0 | D3: 0 | E3: 0.8 | F3: 0 | G3: 7.2 | H3: 22.2 | I3: 4.8 | J3: 7.4 | K3: 6.6 | L3: 0 | M3: 0
A4: 2nd | B4: 1.6 | C4: 0 | D4: 0 | E4: 0 | F4: 0 | G4: 1.2 | H4: 8 | I4: 0 | J4: 0 | K4: 0 | L4: 11 | M4: 0
A5: 3rd | B5: 0 | C5: 0 | D5: 0 | E5: 0.4 | F5: 6.2 | G5: 0.2 | H5: 1.6 | I5: 3.4 | J5: 7.8 | K5: 0.8 | L5: 0.2 | M5: 2
A6: 4th | B6: 0 | C6: 0 | D6: 0.8 | E6: 0 | F6: 15.4 | G6: 0 | H6: 17.6 | I6: 14 | J6: 0.6 | K6: 2.2 | L6: 31.6 | M6: 23.6
A7: 5th | B7: 0 | C7: 0 | D7: 0.2 | E7: 1 | F7: 0.2 | G7: 0 | H7: 1.2 | I7: 21 | J7: 0 | K7: 6.4 | L7: 21.8 | M7: 0
A8: 6th | B8: 0 | C8: 0 | D8: 0 | E8: 1 | F8: 15.2 | G8: 0 | H8: 3.6 | I8: 12.4 | J8: 0 | K8: 16 | L8: 0 | M8: 0
A9: 7th | B9: 0.6 | C9: 0 | D9: 0 | E9: 0 | F9: 0 | G9: 1.2 | H9: 7.6 | I9: 0.4 | J9: 0 | K9: 6.4 | L9: 0 | M9: 2.2
A10: 8th | B10: 2.8 | C10: 0 | D10: 3 | E10: 0 | F10: 0 | G10: 0 | H10: 5.2 | I10: 0 | J10: 0 | K10: 0 | L10: 0 | M10: 0
A11: 9th | B11: 0 | C11: 0 | D11: 0 | E11: 0 | F11: 0 | G11: 1.8 | H11: 10.4 | I11: 0 | J11: 0 | K11: 1 | L11: 0 | M11: 0
A12: 10th | B12: 0 | C12: 0.6 | D12: 0 | E12: 0 | F12: 0 | H12: 0.2 | I12: 8.8 | J12: 1.4 | K12: 0 | L12: 0 | M12: 0
A13: 11th | B13: 0 | C13: 0.8 | D13: 0 | E13: 0 | F13: 0 | G13: 10.2 | H13: 0 | I13: 10.2 | J13: 9.6 | K13: 0 | L13: 0 | M13: 0
A14: 12th | B14: 0 | C14: 0 | D14: 0.4 | E14: 0 | F14: 0 | G14: 9.8 | H14: 1.4 | I14: 19 | J14: 4.4 | K14: 9.6 | L14: 0 | M14: 0
A15: 13th | B15: 0 | C15: 0 | D15: 0 | E15: 0 | F15: 0 | G15: 20.4 | H15: 3 | I15: 2.8 | J15: 0 | K15: 6.4 | L15: 0 | M15: 0
A16: 14th | B16: 0 | C16: 0 | D16: 0 | E16: 0 | F16: 0 | G16: 0 | H16: 7.2 | I16: 1.4 | J16: 1.4 | K16: 1 | L16: 0 | M16: 0
A17: 15th | B17: 0 | C17: 0 | D17: 0 | E17: 1.2 | F17: 0.6 | G17: 0 | H17: 1.2 | I17: 0 | J17: 11.6 | K17: 0 | L17: 0 | M17: 0
A18: 16th | B18: 0 | C18: 0 | D18: 6.4 | E18: 0.2 | F18: 4 | G18: 0.4 | H18: 0 | I18: 0 | J18: 0 | K18: 3.6 | L18: 0 | M18: 5.6
A19: 17th | B19: 0 | C19: 0 | D19: 0.4 | E19: 0 | F19: 0 | G19: 0.4 | H19: 0 | I19: 0 | J19: 17.8 | K19: 1.2 | L19: 0 | M19: 0
A20: 18th | B20: 0 | C20: 0 | D20: 0 | E20: 0 | F20: 8.8 | G20: 3.4 | H20: 37.2 | J20: 0 | K20: 0 | L20: 0 | M20: 0
A21: 19th | B21: 5.6 | C21: 6.2 | D21: 0 | E21: 0 | G21: 0.4 | H21: 8 | I21: 3.2 | J21: 0 | K21: 0 | L21: 0 | M21: 0
A22: 20th | B22: 0.2 | C22: 0 | D22: 0 | E22: 0 | F22: 13.6 | G22: 5.2 | H22: 2.4 | I22: 0 | J22: 5.2 | K22: 0 | L22: 0 | M22: 0.6
A23: 21st | B23: 15.8 | C23: 0 | D23: 1.2 | E23: 0 | F23: 1.4 | G23: 25 | H23: 0 | I23: 0 | J23: 0 | K23: 0 | L23: 13.6 | M23: 6.2
A24: 22nd | B24: 8.2 | C24: 0 | D24: 0 | E24: 12.8 | F24: 7.2 | G24: 1.4 | H24: 0.2 | I24: 0.8 | J24: 0 | K24: 0 | L24: 12.6 | M24: 70.4
A25: 23rd | B25: 0 | C25: 0 | D25: 0 | E25: 0.4 | F25: 0.4 | G25: 0.8 | H25: 0 | I25: 0 | J25: 0 | K25: 5.4 | L25: 2 | M25: 16.6
A26: 24th | B26: 1.4 | C26: 0 | D26: 18.2 | E26: 0 | F26: 1 | G26: 0 | H26: 0 | I26: 0 | J26: 0 | K26: 0 | L26: 0 | M26: 8.2
A27: 25th | B27: 0 | C27: 0 | D27: 4.8 | E27: 0 | F27: 0 | G27: 0 | H27: 0 | I27: 0 | J27: 2.2 | K27: 0 | L27: 0 | M27: 1
A28: 26th | B28: 0 | C28: 0 | D28: 0 | E28: 0 | F28: 0 | G28: 0 | H28: 1.2 | I28: 0.4 | J28: 0 | K28: 0 | L28: 0 | M28: 0
A29: 27th | B29: 4.8 | C29: 0 | D29: 0 | E29: 0 | F29: 0 | G29: 17.8 | H29: 1.4 | I29: 0 | J29: 0 | K29: 0 | L29: 0 | M29: 0
A30: 28th | B30: 6 | C30: 31.4 | D30: 0 | E30: 10.2 | F30: 0 | G30: 19.4 | H30: 5.8 | I30: 0 | K30: 0 | L30: 0 | M30: 0
A31: 29th | B31: 2.2 | D31: 10.2 | E31: 0.6 | F31: 0 | G31: 0.2 | H31: 1.6 | I31: 0 | J31: 12.4 | K31: 4.8 | L31: 0.2 | M31: 0
A32: 30th | B32: 0 | D32: 8.4 | E32: 3 | F32: 11.8 | G32: 18.4 | H32: 0.8 | I32: 0 | J32: 14.2 | K32: 0 | L32: 0 | M32: 0
A33: 31st | B33: 1.2 | D33: 3.8 | F33: 7.2 | H33: 0.2 | I33: 1.6 | K33: 0 | M33: 0
B34: =SUM(B3:B33) -> 64.2 | C34: =SUM(C3:C33) -> 39 | D34: 57.8 | E34: 31.6 | F34: 93 | G34: 144.8 | H34: 149.2 | I34: 104.2 | J34: 96 | K34: 71.4 | L34: 93 | M34: 136.4

Sheet 2001
A1: YEARLY RAINFALL DATA: 2007
A2: Day | B2: Jan | C2: Feb | D2: Mar | E2: Apr | F2: May | G2: Jun | H2: Jul | I2: Aug | J2: Sep | K2: Oct | L2: Nov | M2: Dec
A3: 1st | B3: 13.8 | C3: 0 | D3: 0 | E3: 0.8 | F3: 0 | G3: 7.2 | H3: 22.2 | I3: 4.8 | J3: 7.4 | K3: 6.6 | L3: 0 | M3: 0
A4: 2nd | B4: 1.6 | C4: 0 | D4: 0 | E4: 0 | F4: 0 | G4: 1.2 | H4: 8 | I4: 0 | J4: 0 | K4: 0 | L4: 11 | M4: 0
A5: 3rd | B5: 0 | C5: 0 | D5: 0 | E5: 0.4 | F5: 6.2 | G5: 0.2 | H5: 1.6 | I5: 3.4 | J5: 7.8 | K5: 0.8 | L5: 0.2 | M5: 2
A6: 4th | B6: 0 | C6: 0 | D6: 0.8 | E6: 0 | F6: 15.4 | G6: 0 | H6: 17.6 | I6: 14 | J6: 0.6 | K6: 2.2 | L6: 31.6 | M6: 23.6
A7: 5th | B7: 0 | C7: 0 | D7: 0.2 | E7: 1 | F7: 0.2 | G7: 0 | H7: 1.2 | I7: 21 | J7: 0 | K7: 6.4 | L7: 21.8 | M7: 0
A8: 6th | B8: 0 | C8: 0 | D8: 0 | E8: 1 | F8: 15.2 | G8: 0 | H8: 3.6 | I8: 12.4 | J8: 0 | K8: 16 | L8: 0 | M8: 0
A9: 7th | B9: 0.6 | C9: 0 | D9: 0 | E9: 0 | F9: 0 | G9: 1.2 | H9: 7.6 | I9: 0.4 | J9: 0 | K9: 6.4 | L9: 0 | M9: 2.2
A10: 8th | B10: 2.8 | C10: 0 | D10: 3 | E10: 0 | F10: 0 | G10: 0 | H10: 5.2 | I10: 0 | J10: 0 | K10: 0 | L10: 0 | M10: 0
A11: 9th | B11: 0 | C11: 0 | D11: 0 | E11: 0 | F11: 0 | G11: 1.8 | H11: 10.4 | I11: 0 | J11: 0 | K11: 1 | L11: 0 | M11: 0
A12: 10th | B12: 0 | C12: 0.6 | D12: 0 | E12: 0 | F12: 0 | H12: 0.2 | I12: 8.8 | J12: 1.4 | K12: 0 | L12: 0 | M12: 0
A13: 11th | B13: 0 | C13: 0.8 | D13: 0 | E13: 0 | F13: 0 | G13: 10.2 | H13: 0 | I13: 10.2 | J13: 9.6 | K13: 0 | L13: 0 | M13: 0
A14: 12th | B14: 0 | C14: 0 | D14: 0.4 | E14: 0 | F14: 0 | G14: 9.8 | H14: 1.4 | I14: 19 | J14: 4.4 | K14: 9.6 | L14: 0 | M14: 0
A15: 13th | B15: 0 | C15: 0 | D15: 0 | E15: 0 | F15: 0 | G15: 20.4 | H15: 3 | I15: 2.8 | J15: 0 | K15: 6.4 | L15: 0 | M15: 0
A16: 14th | B16: 0 | C16: 0 | D16: 0 | E16: 0 | F16: 0 | G16: 0 | H16: 7.2 | I16: 1.4 | J16: 1.4 | K16: 1 | L16: 0 | M16: 0
A17: 15th | B17: 0 | C17: 0 | D17: 0 | E17: 1.2 | F17: 0.6 | G17: 0 | H17: 1.2 | I17: 0 | J17: 11.6 | K17: 0 | L17: 0 | M17: 0
A18: 16th | B18: 0 | C18: 0 | D18: 6.4 | E18: 0.2 | F18: 4 | G18: 0.4 | H18: 0 | I18: 0 | J18: 0 | K18: 3.6 | L18: 0 | M18: 5.6
A19: 17th | B19: 0 | C19: 0 | D19: 0.4 | E19: 0 | F19: 0 | G19: 0.4 | H19: 0 | I19: 0 | J19: 17.8 | K19: 1.2 | L19: 0 | M19: 0
A20: 18th | B20: 0 | C20: 0 | D20: 0 | E20: 0 | F20: 8.8 | G20: 3.4 | H20: 37.2 | J20: 0 | K20: 0 | L20: 0 | M20: 0
A21: 19th | B21: 5.6 | C21: 6.2 | D21: 0 | E21: 0 | G21: 0.4 | H21: 8 | I21: 3.2 | J21: 0 | K21: 0 | L21: 0 | M21: 0
A22: 20th | B22: 0.2 | C22: 0 | D22: 0 | E22: 0 | F22: 13.6 | G22: 5.2 | H22: 2.4 | I22: 0 | J22: 5.2 | K22: 0 | L22: 0 | M22: 0.6
A23: 21st | B23: 15.8 | C23: 0 | D23: 1.2 | E23: 0 | F23: 1.4 | G23: 25 | H23: 0 | I23: 0 | J23: 0 | K23: 0 | L23: 13.6 | M23: 6.2
A24: 22nd | B24: 8.2 | C24: 0 | D24: 0 | E24: 12.8 | F24: 7.2 | G24: 1.4 | H24: 0.2 | I24: 0.8 | J24: 0 | K24: 0 | L24: 12.6 | M24: 70.4
A25: 23rd | B25: 0 | C25: 0 | D25: 0 | E25: 0.4 | F25: 0.4 | G25: 0.8 | H25: 0 | I25: 0 | J25: 0 | K25: 5.4 | L25: 2 | M25: 16.6
A26: 24th | B26: 1.4 | C26: 0 | D26: 18.2 | E26: 0 | F26: 1 | G26: 0 | H26: 0 | I26: 0 | J26: 0 | K26: 0 | L26: 0 | M26: 8.2
A27: 25th | B27: 0 | C27: 0 | D27: 4.8 | E27: 0 | F27: 0 | G27: 0 | H27: 0 | I27: 0 | J27: 2.2 | K27: 0 | L27: 0 | M27: 1
A28: 26th | B28: 0 | C28: 0 | D28: 0 | E28: 0 | F28: 0 | G28: 0 | H28: 1.2 | I28: 0.4 | J28: 0 | K28: 0 | L28: 0 | M28: 0
A29: 27th | B29: 4.8 | C29: 0 | D29: 0 | E29: 0 | F29: 0 | G29: 17.8 | H29: 1.4 | I29: 0 | J29: 0 | K29: 0 | L29: 0 | M29: 0
A30: 28th | B30: 6 | C30: 31.4 | D30: 0 | E30: 10.2 | F30: 0 | G30: 19.4 | H30: 5.8 | I30: 0 | K30: 0 | L30: 0 | M30: 0
A31: 29th | B31: 2.2 | D31: 10.2 | E31: 0.6 | F31: 0 | G31: 0.2 | H31: 1.6 | I31: 0 | J31: 12.4 | K31: 4.8 | L31: 0.2 | M31: 0
A32: 30th | B32: 0 | D32: 8.4 | E32: 3 | F32: 11.8 | G32: 18.4 | H32: 0.8 | I32: 0 | J32: 14.2 | K32: 0 | L32: 0 | M32: 0
A33: 31st | B33: 1.2 | D33: 3.8 | F33: 7.2 | H33: 0.2 | I33: 1.6 | K33: 0 | M33: 0
B34: =SUM(B3:B33) -> 64.2 | C34: =SUM(C3:C33) -> 39 | D34: 57.8 | E34: 31.6 | F34: 93 | G34: 144.8 | H34: 149.2 | I34: 104.2 | J34: 96 | K34: 71.4 | L34: 93 | M34: 136.4

Sheet 2000
A1: YEARLY RAINFALL DATA: 2007
A2: Day | B2: Jan | C2: Feb | D2: Mar | E2: Apr | F2: May | G2: Jun | H2: Jul | I2: Aug | J2: Sep | K2: Oct | L2: Nov | M2: Dec
A3: 1st | B3: 13.8 | C3: 0 | D3: 0 | E3: 0.8 | F3: 0 | G3: 7.2 | H3: 22.2 | I3: 4.8 | J3: 7.4 | K3: 6.6 | L3: 0 | M3: 0
A4: 2nd | B4: 1.6 | C4: 0 | D4: 0 | E4: 0 | F4: 0 | G4: 1.2 | H4: 8 | I4: 0 | J4: 0 | K4: 0 | L4: 11 | M4: 0
A5: 3rd | B5: 0 | C5: 0 | D5: 0 | E5: 0.4 | F5: 6.2 | G5: 0.2 | H5: 1.6 | I5: 3.4 | J5: 7.8 | K5: 0.8 | L5: 0.2 | M5: 2
A6: 4th | B6: 0 | C6: 0 | D6: 0.8 | E6: 0 | F6: 15.4 | G6: 0 | H6: 17.6 | I6: 14 | J6: 0.6 | K6: 2.2 | L6: 31.6 | M6: 23.6
A7: 5th | B7: 0 | C7: 0 | D7: 0.2 | E7: 1 | F7: 0.2 | G7: 0 | H7: 1.2 | I7: 21 | J7: 0 | K7: 6.4 | L7: 21.8 | M7: 0
A8: 6th | B8: 0 | C8: 0 | D8: 0 | E8: 1 | F8: 15.2 | G8: 0 | H8: 3.6 | I8: 12.4 | J8: 0 | K8: 16 | L8: 0 | M8: 0
A9: 7th | B9: 0.6 | C9: 0 | D9: 0 | E9: 0 | F9: 0 | G9: 1.2 | H9: 7.6 | I9: 0.4 | J9: 0 | K9: 6.4 | L9: 0 | M9: 2.2
A10: 8th | B10: 2.8 | C10: 0 | D10: 3 | E10: 0 | F10: 0 | G10: 0 | H10: 5.2 | I10: 0 | J10: 0 | K10: 0 | L10: 0 | M10: 0
A11: 9th | B11: 0 | C11: 0 | D11: 0 | E11: 0 | F11: 0 | G11: 1.8 | H11: 10.4 | I11: 0 | J11: 0 | K11: 1 | L11: 0 | M11: 0
A12: 10th | B12: 0 | C12: 0.6 | D12: 0 | E12: 0 | F12: 0 | H12: 0.2 | I12: 8.8 | J12: 1.4 | K12: 0 | L12: 0 | M12: 0
A13: 11th | B13: 0 | C13: 0.8 | D13: 0 | E13: 0 | F13: 0 | G13: 10.2 | H13: 0 | I13: 10.2 | J13: 9.6 | K13: 0 | L13: 0 | M13: 0
A14: 12th | B14: 0 | C14: 0 | D14: 0.4 | E14: 0 | F14: 0 | G14: 9.8 | H14: 1.4 | I14: 19 | J14: 4.4 | K14: 9.6 | L14: 0 | M14: 0
A15: 13th | B15: 0 | C15: 0 | D15: 0 | E15: 0 | F15: 0 | G15: 20.4 | H15: 3 | I15: 2.8 | J15: 0 | K15: 6.4 | L15: 0 | M15: 0
A16: 14th | B16: 0 | C16: 0 | D16: 0 | E16: 0 | F16: 0 | G16: 0 | H16: 7.2 | I16: 1.4 | J16: 1.4 | K16: 1 | L16: 0 | M16: 0
A17: 15th | B17: 0 | C17: 0 | D17: 0 | E17: 1.2 | F17: 0.6 | G17: 0 | H17: 1.2 | I17: 0 | J17: 11.6 | K17: 0 | L17: 0 | M17: 0
A18: 16th | B18: 0 | C18: 0 | D18: 6.4 | E18: 0.2 | F18: 4 | G18: 0.4 | H18: 0 | I18: 0 | J18: 0 | K18: 3.6 | L18: 0 | M18: 5.6
A19: 17th | B19: 0 | C19: 0 | D19: 0.4 | E19: 0 | F19: 0 | G19: 0.4 | H19: 0 | I19: 0 | J19: 17.8 | K19: 1.2 | L19: 0 | M19: 0
A20: 18th | B20: 0 | C20: 0 | D20: 0 | E20: 0 | F20: 8.8 | G20: 3.4 | H20: 37.2 | J20: 0 | K20: 0 | L20: 0 | M20: 0
A21: 19th | B21: 5.6 | C21: 6.2 | D21: 0 | E21: 0 | G21: 0.4 | H21: 8 | I21: 3.2 | J21: 0 | K21: 0 | L21: 0 | M21: 0
A22: 20th | B22: 0.2 | C22: 0 | D22: 0 | E22: 0 | F22: 13.6 | G22: 5.2 | H22: 2.4 | I22: 0 | J22: 5.2 | K22: 0 | L22: 0 | M22: 0.6
A23: 21st | B23: 15.8 | C23: 0 | D23: 1.2 | E23: 0 | F23: 1.4 | G23: 25 | H23: 0 | I23: 0 | J23: 0 | K23: 0 | L23: 13.6 | M23: 6.2
A24: 22nd | B24: 8.2 | C24: 0 | D24: 0 | E24: 12.8 | F24: 7.2 | G24: 1.4 | H24: 0.2 | I24: 0.8 | J24: 0 | K24: 0 | L24: 12.6 | M24: 70.4
A25: 23rd | B25: 0 | C25: 0 | D25: 0 | E25: 0.4 | F25: 0.4 | G25: 0.8 | H25: 0 | I25: 0 | J25: 0 | K25: 5.4 | L25: 2 | M25: 16.6
A26: 24th | B26: 1.4 | C26: 0 | D26: 18.2 | E26: 0 | F26: 1 | G26: 0 | H26: 0 | I26: 0 | J26: 0 | K26: 0 | L26: 0 | M26: 8.2
A27: 25th | B27: 0 | C27: 0 | D27: 4.8 | E27: 0 | F27: 0 | G27: 0 | H27: 0 | I27: 0 | J27: 2.2 | K27: 0 | L27: 0 | M27: 1
A28: 26th | B28: 0 | C28: 0 | D28: 0 | E28: 0 | F28: 0 | G28: 0 | H28: 1.2 | I28: 0.4 | J28: 0 | K28: 0 | L28: 0 | M28: 0
A29: 27th | B29: 4.8 | C29: 0 | D29: 0 | E29: 0 | F29: 0 | G29: 17.8 | H29: 1.4 | I29: 0 | J29: 0 | K29: 0 | L29: 0 | M29: 0
A30: 28th | B30: 6 | C30: 31.4 | D30: 0 | E30: 10.2 | F30: 0 | G30: 19.4 | H30: 5.8 | I30: 0 | K30: 0 | L30: 0 | M30: 0
A31: 29th | B31: 2.2 | D31: 10.2 | E31: 0.6 | F31: 0 | G31: 0.2 | H31: 1.6 | I31: 0 | J31: 12.4 | K31: 4.8 | L31: 0.2 | M31: 0
A32: 30th | B32: 0 | D32: 8.4 | E32: 3 | F32: 11.8 | G32: 18.4 | H32: 0.8 | I32: 0 | J32: 14.2 | K32: 0 | L32: 0 | M32: 0
A33: 31st | B33: 1.2 | D33: 3.8 | F33: 7.2 | H33: 0.2 | I33: 1.6 | K33: 0 | M33: 0
B34: =SUM(B3:B33) -> 64.2 | C34: =SUM(C3:C33) -> 39 | D34: 57.8 | E34: 31.6 | F34: 93 | G34: 144.8 | H34: 149.2 | I34: 104.2 | J34: 96 | K34: 71.4 | L34: 93 | M34: 136.4
